fUSD/lending_fUSD_20250608
["ID","MTS","AMOUNT","RATE_DAILY","PERIOD"]
[365030146,1749415835526,-151.0,0.00017861,2]
[365030148,1749415835535,-480.0,0.00017861,2]
[365030150,1749415835545,-480.0,0.00017861,2]
[365030152,1749415835555,-151.0,0.00017861,2]
[365030154,1749415835564,-151.0,0.00017861,2]
[365030156,1749415835573,-480.0,0.00017861,2]
[365030158,1749415835582,-1649.12,0.00017861,2]
[365030160,1749415835592,-480.0,0.00017861,2]
[365030162,1749415835601,-480.0,0.00017861,2]
[365030164,1749415835610,-151.0,0.00017861,2]
[365030166,1749415835619,-480.0,0.00017861,2]
[365030168,1749415835629,-269.194774,0.00017861,2]
[365030169,1749415835638,-480.0,0.00017861,2]
[365030172,1749415835648,-573.31,0.00017861,2]
[365030173,1749415835658,-269.194774,0.00017861,2]
[365030175,1749415835667,-473.00511096,0.00017861,2]
[365030177,1749415835676,-151.0,0.00017861,2]
[365030179,1749415835686,-151.0,0.00017862,2]
[365030181,1749415835695,-397.76,0.00017862,2]
[365030183,1749415835704,-480.0,0.00017862,2]
[365030185,1749415835714,-373.17,0.00017862,2]
[365030187,1749415835723,-470.34,0.00017862,2]
[365030189,1749415835733,-480.0,0.00017862,2]
[365030191,1749415835742,-480.0,0.00017862,2]
[365030193,1749415835751,-480.0,0.00017862,2]
[365030195,1749415835760,-480.0,0.00017862,2]
[365030197,1749415835770,-347.42061179,0.00017862,2]
[365030199,1749415835779,-303.03945339,0.00017862,2]
[365030201,1749415835788,-360.0,0.00017862,2]
[365030203,1749415835798,-480.0,0.00017862,2]
[365030205,1749415835807,-204.1,0.00017862,2]
[365030207,1749415835817,-480.0,0.00017862,2]
[365030209,1749415835826,-553.76,0.00017862,2]
[365030211,1749415835836,-480.0,0.00017862,2]
[365030213,1749415835845,-480.0,0.00017862,2]
[365030215,1749415835854,-480.0,0.00017862,2]
[365030217,1749415835863,-480.0,0.00017862,2]
[365030219,1749415835873,-1139.66,0.00017862,2]
[365030221,1749415835882,-480.0,0.00017862,2]
[365030223,1749415835892,-227.2642045,0.00017862,2]
[365030225,1749415835901,-480.0,0.00017862,2]
[365030226,1749415835911,-480.0,0.00017862,2]
[365030228,1749415835920,-480.0,0.00017862,2]
[365030230,1749415835929,-638.62,0.00017862,2]
[365030232,1749415835939,-1054.94,0.00017862,2]
[365030234,1749415835948,-794.95,0.00017862,2]
[365030236,1749415835958,-460.0,0.00017862,2]
[365030238,1749415835967,-480.0,0.00017862,2]
[365030240,1749415835976,-480.0,0.00017862,2]
[365030242,1749415835986,-480.0,0.00017862,2]
[365030244,1749415835995,-480.0,0.00017862,2]
[365030246,1749415836005,-480.0,0.00017862,2]
[365030248,1749415836014,-480.0,0.00017862,2]
[365030250,1749415836023,-480.0,0.00017862,2]
[365030252,1749415836032,-480.0,0.00017862,2]
[365030254,1749415836045,-480.0,0.00017862,2]
[365030256,1749415836056,-480.0,0.00017862,2]
[365030258,1749415836065,-151.0,0.00017862,2]
[365030260,1749415836074,-151.0,0.00017862,2]
[365030262,1749415836083,-480.0,0.00017862,2]
[365030264,1749415836092,-151.0,0.00017862,2]
[365030266,1749415836101,-480.0,0.00017862,2]
[365030268,1749415836110,-515.89,0.00017862,2]
[365030270,1749415836119,-151.0,0.00017862,2]
[365030272,1749415836129,-151.0,0.00017862,2]
[365030274,1749415836138,-224.12,0.00017862,2]
[365030276,1749415836148,-480.0,0.00017862,2]
[365030278,1749415836158,-480.0,0.00017862,2]
[365030280,1749415836167,-480.0,0.00017862,2]
[365030282,1749415836177,-151.0,0.00017862,2]
[365030284,1749415836186,-151.0,0.00017862,2]
[365030286,1749415836195,-151.0,0.00017862,2]
[365030288,1749415836204,-510.9,0.00017862,2]
[365030290,1749415836213,-480.0,0.00017862,2]
[365030292,1749415836222,-480.0,0.00017862,2]
[365030294,1749415836231,-143.91167071,0.00017862,2]
[365030486,1749415838017,-423.74673554,0.00017826,2]
[365030492,1749415838072,-76.25326446,0.00017826,2]
[365030494,1749415838082,-500.0,0.00017826,2]
[365030496,1749415838091,-500.0,0.00017826,2]
[365030498,1749415838100,-227.34690142,0.00017826,2]
[365030500,1749415838109,-7.08832929,0.00017862,2]
[365030502,1749415838118,-269.194774,0.00017862,2]
[365030504,1749415838127,-269.194774,0.00017862,2]
[365030506,1749415838136,-480.0,0.00017862,2]
[365030508,1749415838145,-151.0,0.00017862,2]
[365030510,1749415838155,-151.0,0.00017862,2]
[365030512,1749415838165,-151.0,0.00017862,2]
[365030514,1749415838174,-168.888398,0.00017863,2]
[365030516,1749415838183,-168.888398,0.00017863,2]
[365030518,1749415838192,-310.353274,0.00017863,2]
[365030520,1749415838202,-310.353274,0.00017863,2]
[365030522,1749415838211,-151.0,0.00017863,2]
[365030524,1749415838221,-151.0,0.00017863,2]
[365030526,1749415838231,-150.0,0.00017868,2]
[365030528,1749415838239,-500.0,0.00017868,2]
[365030529,1749415838249,-150.0,0.00017868,2]
[365030531,1749415838258,-150.0,0.00017868,2]
[365030533,1749415838267,-150.0,0.00017868,2]
[365030535,1749415838276,-500.0,0.00017868,2]
[365030537,1749415838287,-459.0,0.00017868,2]
[365030539,1749415838296,-150.0,0.00017868,2]
[365030541,1749415838306,-150.0,0.00017868,2]
[365030543,1749415838315,-609.0,0.00017868,2]
[365030545,1749415838326,-150.0,0.00017868,2]
[365030547,1749415838337,-150.0,0.00017868,2]
[365030549,1749415838347,-150.0,0.00017868,2]
[365030551,1749415838356,-500.0,0.00017868,2]
[365030553,1749415838365,-500.0,0.00017868,2]
[365030555,1749415838374,-150.0,0.00017868,2]
[365030558,1749415838383,-206.964954,0.00017868,2]
[365030560,1749415838393,-151.0,0.00017868,2]
[365030562,1749415838402,-151.0,0.00017868,2]
[365030564,1749415838411,-151.0,0.00017868,2]
[365030566,1749415838421,-287.865629,0.00017868,2]
[365030568,1749415838431,-500.0,0.00017873,2]
[365030570,1749415838439,-500.0,0.00017873,2]
[365030572,1749415838448,-500.47108292,0.00017873,2]
[365030574,1749415838458,-500.0,0.00017873,2]
[365030576,1749415838467,-178.11183276,0.00017873,2]
[365030578,1749415838476,-500.0,0.00017873,2]
[365030580,1749415838484,-151.0,0.00017873,2]
[365030582,1749415838493,-151.0,0.00017873,2]
[365030584,1749415838502,-229.16714,0.00017873,2]
[365030586,1749415838511,-229.16714,0.00017873,2]
[365030588,1749415838520,-151.0,0.00017873,2]
[365030590,1749415838529,-254.650552,0.00017873,2]
[365030591,1749415838538,-275.347971,0.00017873,2]
[365030593,1749415838548,-151.0,0.00017873,2]
[365030595,1749415838557,-221.381116,0.00017873,2]
[365030597,1749415838565,-221.381116,0.00017873,2]
[365030599,1749415838574,-151.0,0.00017873,2]
[365030601,1749415838584,-151.0,0.00017873,2]
[365030603,1749415838593,-151.0,0.00017873,2]
[365030605,1749415838602,-151.0,0.00017873,2]
[365030607,1749415838611,-151.0,0.00017873,2]
[365030609,1749415838620,-1587.64062898,0.00017873,2]
[365030832,1749415841252,200.0,0.00016612,2]
[365031265,1749415845970,-500.0,0.00017722,2]
[365031267,1749415845980,-500.0,0.00017722,2]
[365031269,1749415845990,-500.0,0.00017722,2]
[365031271,1749415846000,-343.00213817,0.00017722,2]
[365031273,1749415846009,-500.0,0.00017722,2]
[365031275,1749415846019,-500.0,0.00017722,2]
[365031277,1749415846028,-500.0,0.00017722,2]
[365031279,1749415846037,-500.0,0.00017722,2]
[365031281,1749415846046,-500.0,0.00017722,2]
[365031283,1749415846056,-500.0,0.00017722,2]
[365031285,1749415846065,-500.0,0.00017722,2]
[365031287,1749415846074,-208.46435252,0.00017722,2]
[365031289,1749415846088,-291.53564748,0.00017722,2]
[365031291,1749415846097,-500.0,0.00017722,2]
[365031293,1749415846107,-500.0,0.00017722,2]
[365031295,1749415846116,-500.0,0.00017722,2]
[365031297,1749415846125,-500.0,0.00017722,2]
[365031299,1749415846134,-312.27183285,0.00017722,2]
[365031301,1749415846143,-500.0,0.00017722,2]
[365031303,1749415846153,-255.52114939,0.00017722,2]
[365031305,1749415846164,-181.46787518,0.00017722,2]
[365031307,1749415846173,-500.0,0.00017722,2]
[365031309,1749415846182,-384.55992482,0.00017722,2]
[365031686,1749416079056,150.0,0.0001689,7]
[365031688,1749416177779,3239.28802879,0.00016879,2]
[365031689,1749416177800,10000.0,0.00016879,2]
[365031690,1749416177822,10000.0,0.00016879,2]
[365031691,1749416177843,10000.0,0.00016879,2]
[365031692,1749416177864,3214.35197121,0.00016879,2]
[365031693,1749416229057,6785.64802879,0.00016881,2]
[365031694,1749416229079,10000.0,0.00016881,2]
[365031695,1749416229101,10000.0,0.00016881,2]
[365031696,1749416229130,14281.99197121,0.00016881,2]
[365031697,1749416298975,200.0,0.00016876,2]
[365031698,1749416370025,3375.0,0.000127,5]
[365031699,1749416568288,23900.0,0.00016854,2]
[365031700,1749416642173,1000.0,0.00016868,2]
[365031701,1749416651770,209.0,0.00016712,2]
[365031702,1749416661947,500.0,0.00016862,2]
[365031703,1749416779174,1709.18,0.00016864,2]
[365031704,1749416793067,-1951.6237,0.0001754,2]
[365031705,1749416798299,208.36,0.00013699,2]
[365031707,1749416810147,-150.0,0.0001754,2]
[365031708,1749416918073,498.13,0.00014933,2]
[365031709,1749416930940,-498.13,0.00017197,2]
[365031710,1749416930962,-1919.3763,0.0001754,2]
[365031711,1749416930983,-192.03,0.0001759,2]
[365031712,1749416931005,-250.0,0.0001764,2]
[365031713,1749416931028,-1200.0,0.0001769,2]
[365031714,1749416931049,-300.0,0.0001769,2]
[365031715,1749416931070,-500.0,0.00017691,2]
[365031716,1749416931091,-500.0,0.00017691,2]
[365031717,1749416931113,-500.0,0.00017691,2]
[365031718,1749416931134,-500.0,0.00017691,2]
[365031719,1749416931156,-500.0,0.00017691,2]
[365031720,1749416931177,-500.0,0.00017691,2]
[365031721,1749416931201,-150.0,0.00017692,2]
[365031722,1749416931223,-150.715423,0.0001772,2]
[365031723,1749416931245,-151.0,0.00017722,2]
[365031724,1749416931267,-207.4,0.00017753,2]
[365031725,1749416931288,-458.0,0.00017763,2]
[365031726,1749416931309,-9803.55955905,0.00017764,2]
[365031727,1749416931334,-449.47044095,0.00017764,2]
[365031728,1749416931355,-282.1424234,0.00017789,2]
[365031729,1749416931377,-852.0,0.00017794,2]
[365031730,1749416931398,-883.0,0.00017794,2]
[365031731,1749416931420,-1159.0,0.00017794,2]
[365031732,1749416931443,-171.53520263,0.00017795,2]
[365031733,1749416931466,-1000.0,0.000178,6]
[365031734,1749416931490,-1683.3002,0.0001781,2]
[365031735,1749416931517,-151.0,0.00017855,2]
[365031736,1749416931540,-160.676,0.0001786,2]
[365031737,1749416931564,-480.0,0.00017861,2]
[365031738,1749416931587,-284.74620952,0.00017861,2]
[365031739,1749416931609,-480.0,0.00017861,2]
[365031740,1749416931634,-1160.87,0.00017861,2]
[365031741,1749416931656,-480.0,0.00017861,2]
[365031742,1749416931679,-471.22,0.00017861,2]
[365031743,1749416931700,-480.0,0.00017861,2]
[365031744,1749416931722,-151.0,0.00017864,2]
[365031745,1749416931746,-151.0,0.00017864,2]
[365031746,1749416931774,-151.0,0.00017864,2]
[365031747,1749416931799,-154.966782,0.00017864,2]
[365031748,1749416931823,-151.0,0.00017864,2]
[365031749,1749416931844,-239.72,0.00017864,2]
[365031750,1749416931866,-151.0,0.00017864,2]
[365031751,1749416931889,-151.0,0.00017864,2]
[365031752,1749416931911,-151.0,0.00017864,2]
[365031753,1749416931934,-151.0,0.00017864,2]
[365031754,1749416931955,-151.0,0.00017864,2]
[365031755,1749416931978,-151.0,0.00017864,2]
[365031756,1749416932000,-151.0,0.00017864,2]
[365031757,1749416932024,-155.176637,0.00017864,2]
[365031758,1749416932049,-155.176637,0.00017864,2]
[365031759,1749416932071,-151.0,0.00017864,2]
[365031760,1749416932093,-200.157319,0.00017864,2]
[365031761,1749416932115,-151.0,0.00017864,2]
[365031762,1749416932139,-151.0,0.00017864,2]
[365031763,1749416932162,-151.0,0.00017864,2]
[365031764,1749416932187,-500.0,0.00017865,2]
[365031765,1749416932210,-159.66544717,0.00017865,2]
[365031766,1749416932233,-500.0,0.00017865,2]
[365031767,1749416932257,-500.0,0.00017865,2]
[365031768,1749416932282,-500.0,0.00017865,2]
[365031769,1749416932304,-500.0,0.00017865,2]
[365031770,1749416932331,-500.0,0.00017865,2]
[365031771,1749416932354,-500.63400597,0.00017865,2]
[365031772,1749416932376,-500.0,0.00017865,2]
[365031773,1749416932401,-246.84023687,0.00017865,2]
[365031774,1749416932426,-73.91374054,0.00017865,2]
[365031775,1749416932463,-426.08625946,0.00017865,2]
[365031776,1749416932486,-500.0,0.00017865,2]
[365031777,1749416932510,-500.0,0.00017865,2]
[365031778,1749416932533,-500.0,0.00017865,2]
[365031779,1749416932557,-500.0,0.00017865,2]
[365031780,1749416932595,-196.69311374,0.00017865,2]
[365031781,1749416932626,-500.0,0.00017865,2]
[365031782,1749416932650,-500.0,0.00017865,2]
[365031783,1749416932673,-500.0,0.00017865,2]
[365031784,1749416932696,-500.0,0.00017865,2]
[365031785,1749416932718,-500.0,0.00017865,2]
[365031786,1749416932741,-13157.43190885,0.00017866,2]
[365031787,1749416932776,-2632.57309105,0.00017866,2]
[365031788,1749416932807,-1622.4369094,0.00017866,2]
[365031789,1749416932833,-14025.2012816,0.00017866,2]
[365031790,1749416932868,-1623.2112184,0.00017866,2]
[365031791,1749416932890,-3977.3401977,0.00017866,2]
[365031792,1749416932916,-12679.65986595,0.00017866,2]
[365031793,1749416932950,-2324.95396735,0.00017866,2]
[365031794,1749416932974,-1017.1142834,0.00017866,2]
[365031795,1749416932997,-14938.1430313,0.00017866,2]
[365031796,1749416933032,-18280.21128205,0.00017866,2]
[365031797,1749416933312,-3564.42100725,0.00017866,2]
[365031798,1749416933336,-259.24769506,0.00017868,2]
[365031799,1749416933360,-150.0,0.00017868,2]
[365031800,1749416933386,-250.0,0.00017868,2]
[365031801,1749416933412,-500.0,0.00017868,2]
[365031802,1749416933438,-150.0,0.00017868,2]
[365031803,1749416933462,-150.0,0.00017868,2]
[365031804,1749416933484,-150.0,0.00017868,2]
[365031805,1749416933512,-255.46701861,0.00017868,2]
[365031806,1749416933534,-500.0,0.00017868,2]
[365031807,1749416933556,-150.0,0.00017868,2]
[365031808,1749416933579,-150.0,0.00017868,2]
[365031809,1749416933602,-522.0,0.00017868,2]
[365031810,1749416933624,-250.0,0.00017868,2]
[365031811,1749416933650,-533.0,0.00017868,2]
[365031812,1749416933673,-151.0,0.00017873,2]
[365031813,1749416933701,-360.012246,0.00017873,2]
[365031814,1749416933726,-360.012246,0.00017873,2]
[365031815,1749416933750,-151.0,0.00017873,2]
[365031816,1749416933775,-200.0,0.00017873,2]
[365031817,1749416933802,-295.74451207,0.00017878,2]
[365031818,1749416933829,-500.0,0.00017878,2]
[365031819,1749416933853,-282.14242332,0.0001788,2]
[365031820,1749416933878,-151.0,0.0001788,2]
[365031821,1749416933901,-300.095868,0.0001788,2]
[365031822,1749416933926,-151.0,0.0001788,2]
[365031823,1749416933952,-220.999999,0.0001788,2]
[365031824,1749416933975,-151.0,0.0001788,2]
[365031825,1749416933998,-151.0,0.0001788,2]
[365031826,1749416934020,-151.0,0.0001788,2]
[365031827,1749416934044,-151.0,0.0001788,2]
[365031828,1749416934067,-151.0,0.0001788,2]
[365031829,1749416934090,-151.0,0.0001788,2]
[365031830,1749416934112,-230.00447196,0.0001788,2]
[365031831,1749416934137,-371.92556799,0.0001788,2]
[365031832,1749416934160,-500.0,0.0001788,2]
[365031833,1749416934184,-180.00748546,0.0001788,2]
[365031834,1749416934209,-500.0,0.0001788,2]
[365031835,1749416934235,-399.98262605,0.0001788,2]
[365031836,1749416934259,-500.0,0.0001788,2]
[365031837,1749416934288,-500.0,0.0001788,2]
[365031838,1749416934320,-500.0,0.0001788,2]
[365031839,1749416934345,-385.91152487,0.0001788,2]
[365031840,1749416934371,-500.0,0.0001788,2]
[365031841,1749416934398,-500.0,0.0001788,2]
[365031842,1749416934425,-500.0,0.0001788,2]
[365031843,1749416934450,-151.0,0.0001788,2]
[365031844,1749416934474,-270.01631,0.0001788,2]
[365031845,1749416934499,-270.01631,0.0001788,2]
[365031846,1749416934528,-151.0,0.0001788,2]
[365031847,1749416934553,-307.20397041,0.0001788,2]
[365031848,1749416934595,-186.99470159,0.0001788,2]
[365031849,1749416934619,-494.198672,0.0001788,2]
[365031850,1749416934642,-151.0,0.00017881,2]
[365031851,1749416934665,-151.0,0.00017881,2]
[365031852,1749416934688,-360.012246,0.00017881,2]
[365031853,1749416934712,-360.012246,0.00017881,2]
[365031854,1749416934734,-151.0,0.00017881,2]
[365031855,1749416934760,-276.296866,0.00017881,2]
[365031856,1749416934783,-151.0,0.00017881,2]
[365031857,1749416934812,-154.966782,0.00017881,2]
[365031858,1749416934837,-248.236992,0.00017881,2]
[365031859,1749416934861,-151.0,0.00017881,2]
[365031860,1749416934885,-151.0,0.00017881,2]
[365031861,1749416934909,-155.176637,0.00017881,2]
[365031862,1749416934933,-155.176637,0.00017881,2]
[365031863,1749416934957,-480.0,0.00017881,2]
[365031864,1749416934982,-480.0,0.00017881,2]
[365031865,1749416935007,-480.0,0.00017881,2]
[365031866,1749416935031,-480.0,0.00017881,2]
[365031867,1749416935055,-480.0,0.00017881,2]
[365031868,1749416935079,-480.0,0.00017881,2]
[365031869,1749416935102,-511.43,0.00017881,2]
[365031870,1749416935127,-1066.78,0.00017881,2]
[365031871,1749416935152,-480.0,0.00017881,2]
[365031872,1749416935179,-480.0,0.00017881,2]
[365031873,1749416935204,-480.0,0.00017881,2]
[365031874,1749416935232,-1095.66,0.00017881,2]
[365031875,1749416935257,-480.0,0.00017881,2]
[365031876,1749416935281,-1580.41,0.00017881,2]
[365031877,1749416935307,-480.0,0.00017881,2]
[365031878,1749416935332,-225.58,0.00017881,2]
[365031879,1749416935358,-480.0,0.00017881,2]
[365031880,1749416935383,-480.0,0.00017881,2]
[365031881,1749416935407,-480.0,0.00017881,2]
[365031882,1749416935432,-1549.12,0.00017881,2]
[365031883,1749416935456,-475.93,0.00017881,2]
[365031884,1749416935480,-480.0,0.00017881,2]
[365031885,1749416935508,-522.54,0.00017881,2]
[365031886,1749416935532,-480.0,0.00017881,2]
[365031887,1749416935559,-275.68950246,0.00017881,2]
[365031888,1749416935829,-151.0,0.00017865,2]
[365031889,1749416935859,-6852.35049754,0.00017881,2]
[365031890,1749416935886,-480.0,0.00017881,2]
[365031891,1749416935911,-480.0,0.00017881,2]
[365031892,1749416935937,-480.0,0.00017881,2]
[365031893,1749416935961,-480.0,0.00017881,2]
[365031894,1749416935989,-1452.44,0.00017881,2]
[365031895,1749416936015,-151.0,0.00017882,2]
[365031896,1749416936038,-151.0,0.00017882,2]
[365031897,1749416936061,-172.259752,0.00017882,2]
[365031898,1749416936084,-151.0,0.00017882,2]
[365031899,1749416936306,-188.436342,0.00017882,2]
[365031900,1749416936333,-188.436342,0.00017882,2]
[365031901,1749416936356,-295.2,0.00017882,2]
[365031902,1749416936379,-151.0,0.00017882,2]
[365031903,1749416936403,-6456.08834851,0.00017882,2]
[365031904,1749416936439,-151.0,0.00017865,2]
[365031905,1749416936463,-10631.62165149,0.00017882,2]
[365031906,1749416936487,-480.0,0.00017882,2]
[365031907,1749416936521,-480.0,0.00017882,2]
[365031908,1749416936547,-480.0,0.00017882,2]
[365031909,1749416936572,-477.09914939,0.00017882,2]
[365031910,1749416936599,-549.42,0.00017882,2]
[365031911,1749416936626,-480.0,0.00017882,2]
[365031912,1749416936650,-618.45,0.00017882,2]
[365031913,1749416936673,-559.55401167,0.00017882,2]
[365031914,1749416936697,-1092.18,0.00017882,2]
[365031915,1749416936721,-480.0,0.00017882,2]
[365031916,1749416936744,-151.0,0.00017882,2]
[365031917,1749416936768,-480.0,0.00017882,2]
[365031918,1749416936791,-151.0,0.00017882,2]
[365031919,1749416936815,-166.43940854,0.00017882,2]
[365031920,1749416936838,-480.0,0.00017882,2]
[365031921,1749416936862,-372.44706096,0.00017882,2]
[365031922,1749416936898,-107.55293904,0.00017882,2]
[365031923,1749416936922,-151.0,0.00017882,2]
[365031924,1749416936944,-231.2141,0.00017882,2]
[365031925,1749416936967,-612.02,0.00017882,2]
[365031926,1749416936991,-1010.99,0.00017882,2]
[365031927,1749416937014,-4161.967447,0.00017882,2]
[365031928,1749416937037,-4161.967447,0.00017882,2]
[365031929,1749416937062,-761.82,0.00017882,2]
[365031930,1749416937086,-480.0,0.00017882,2]
[365031931,1749416937109,-480.0,0.00017882,2]
[365031932,1749416937133,-151.0,0.00017882,2]
[365031933,1749416937156,-262.78226939,0.00017882,2]
[365031934,1749416937180,-178.883978,0.00017882,2]
[365031935,1749416937202,-480.0,0.00017882,2]
[365031936,1749416937225,-480.0,0.00017882,2]
[365031937,1749416937250,-151.0,0.00017882,2]
[365031938,1749416937273,-151.0,0.00017882,2]
[365031939,1749416937296,-151.0,0.00017882,2]
[365031940,1749416937320,-151.0,0.00017882,2]
[365031941,1749416937344,-204.107327,0.00017883,2]
[365031942,1749416937368,-273.709969,0.00017883,2]
[365031943,1749416937391,-360.012246,0.00017883,2]
[365031944,1749416937415,-360.012246,0.00017883,2]
[365031945,1749416937438,-360.012246,0.00017883,2]
[365031946,1749416937462,-360.012246,0.00017883,2]
[365031947,1749416937486,-151.0,0.00017883,2]
[365031948,1749416937513,-154.966782,0.00017883,2]
[365031949,1749416937536,-151.0,0.00017883,2]
[365031950,1749416937562,-151.0,0.00017883,2]
[365031951,1749416937586,-151.0,0.00017883,2]
[365031952,1749416937610,-151.0,0.00017883,2]
[365031953,1749416937633,-155.176637,0.00017883,2]
[365031954,1749416937657,-155.176637,0.00017883,2]
[365031955,1749416937681,-188.436342,0.00017883,2]
[365031956,1749416937705,-188.436342,0.00017883,2]
[365031957,1749416937728,-151.0,0.00017883,2]
[365031958,1749416937753,-151.0,0.00017883,2]
[365031959,1749416937776,-147.95408162,0.00017883,2]
[365031960,1749416937815,-3.04591838,0.00017883,2]
[365031961,1749416937837,-151.0,0.00017883,2]
[365031962,1749416937861,-151.0,0.00017883,2]
[365031963,1749416937884,-151.0,0.00017883,2]
[365031964,1749416937908,-209.74678,0.00017883,2]
[365031965,1749416937930,-151.0,0.00017883,2]
[365031966,1749416937954,-151.0,0.00017883,2]
[365031967,1749416937978,-270.01631,0.00017883,2]
[365031968,1749416938002,-270.01631,0.00017883,2]
[365031969,1749416938026,-151.0,0.00017883,2]
[365031970,1749416938050,-494.198672,0.00017883,2]
[365031971,1749416938074,-494.198672,0.00017883,2]
[365031972,1749416938100,-151.0,0.00017883,2]
[365031973,1749416938122,-4161.967447,0.00017883,2]
[365031974,1749416938146,-4161.967447,0.00017883,2]
[365031975,1749416938169,-151.0,0.00017883,2]
[365031976,1749416938193,-151.0,0.00017883,2]
[365031977,1749416938215,-300.0,0.00017888,2]
[365031978,1749416938238,-480.0,0.00017888,2]
[365031979,1749416938262,-6076.05372567,0.00017889,2]
[365031980,1749416938361,-151.0,0.00017866,2]
[365031981,1749416938391,-13162.94927423,0.00017889,2]
[365031982,1749416938416,-151.0,0.00017889,2]
[365031983,1749416938440,-500.0,0.00017889,2]
[365031984,1749416938476,-500.0,0.00017889,2]
[365031985,1749416938513,-500.0,0.00017889,2]
[365031986,1749416938543,-500.0,0.00017889,2]
[365031987,1749416938575,-500.0,0.00017889,2]
[365031988,1749416938608,-500.0,0.00017889,2]
[365031989,1749416938638,-500.0,0.00017889,2]
[365031990,1749416938669,-500.0,0.00017889,2]
[365031991,1749416938700,-500.0,0.00017889,2]
[365031992,1749416938726,-315.26200782,0.00017889,2]
[365031993,1749416938812,-184.73799218,0.00017889,2]
[365031994,1749416938843,-500.0,0.00017889,2]
[365031995,1749416938872,-500.0,0.00017889,2]
[365031996,1749416938901,-500.0,0.00017889,2]
[365031997,1749416938936,-500.0,0.00017889,2]
[365031998,1749416938967,-500.0,0.00017889,2]
[365031999,1749416938997,-500.0,0.00017889,2]
[365032000,1749416939027,-500.0,0.00017889,2]
[365032001,1749416939056,-500.0,0.00017889,2]
[365032002,1749416939085,-500.0,0.00017889,2]
[365032003,1749416939121,-500.0,0.00017889,2]
[365032004,1749416939153,-500.0,0.00017889,2]
[365032005,1749416939181,-500.0,0.00017889,2]
[365032006,1749416939207,-500.0,0.00017889,2]
[365032007,1749416939235,-500.0,0.00017889,2]
[365032008,1749416939270,-500.0,0.00017889,2]
[365032009,1749416939297,-500.0,0.00017889,2]
[365032010,1749416939323,-500.0,0.00017889,2]
[365032011,1749416939351,-500.0,0.00017889,2]
[365032012,1749416939386,-500.0,0.00017889,2]
[365032013,1749416939412,-500.0,0.00017889,2]
[365032014,1749416939437,-500.0,0.00017889,2]
[365032015,1749416939473,-500.0,0.00017889,2]
[365032016,1749416939503,-500.0,0.00017889,2]
[365032017,1749416939533,-500.0,0.00017889,2]
[365032018,1749416939561,-500.0,0.00017889,2]
[365032019,1749416939590,-500.0,0.00017889,2]
[365032020,1749416939619,-500.0,0.00017889,2]
[365032021,1749416939649,-500.0,0.00017889,2]
[365032022,1749416939676,-500.0,0.00017889,2]
[365032023,1749416939705,-500.0,0.00017889,2]
[365032024,1749416939737,-500.0,0.00017889,2]
[365032025,1749416939765,-500.0,0.00017889,2]
[365032026,1749416939791,-500.0,0.00017889,2]